[Event "Late-Titled-Tuesday-Blitz-October-03-2023"]
[Site "Chess.com"]
[Date "2023.10.03"]
[Round "2"]
[White "Savagelittlemole"]
[Black "Bauman_Guy"]
[Result "1-0"]
[WhiteElo "2568"]
[BlackElo "2862"]
[TimeControl "180+1"]
[EndTime "14:18:40 PDT"]
[Termination "Savagelittlemole won by resignation"]

1. e4 {[%clk 0:03:00.9]} 1... c5 {[%clk 0:02:59.6]} 2. Ne2 {[%clk 0:03:00.4]}
2... Nc6 {[%clk 0:02:58.6]} 3. g3 {[%clk 0:03:00.4]} 3... g6 {[%clk 0:02:58.7]}
4. Bg2 {[%clk 0:03:01]} 4... Bg7 {[%clk 0:02:59.3]} 5. O-O {[%clk 0:03:01.6]}
5... d6 {[%clk 0:02:59.3]} 6. c3 {[%clk 0:03:01.8]} 6... Bg4 {[%clk 0:02:58.5]}
7. h3 {[%clk 0:02:59.6]} 7... Bxe2 {[%clk 0:02:58.3]} 8. Qxe2 {[%clk 0:02:59.5]}
8... Nf6 {[%clk 0:02:59]} 9. Rd1 {[%clk 0:02:58.8]} 9... Nd7 {[%clk 0:02:58.5]}
10. Na3 {[%clk 0:02:57.5]} 10... O-O {[%clk 0:02:57.2]} 11. Nc2 {[%clk 0:02:58]}
11... Rb8 {[%clk 0:02:47.5]} 12. d4 {[%clk 0:02:57.8]} 12... b5 {[%clk
0:02:46.4]} 13. e5 {[%clk 0:02:53.6]} 13... Qc7 {[%clk 0:02:45.6]} 14. exd6
{[%clk 0:02:52]} 14... exd6 {[%clk 0:02:38.1]} 15. Bf4 {[%clk 0:02:52.1]} 15...
cxd4 {[%clk 0:02:10.3]} 16. Nxd4 {[%clk 0:02:38.7]} 16... Nxd4 {[%clk
0:02:05.1]} 17. cxd4 {[%clk 0:02:39.6]} 17... Qb6 {[%clk 0:02:01.5]} 18. Qe7
{[%clk 0:02:34.5]} 18... Rbd8 {[%clk 0:01:59.7]} 19. Qxd6 {[%clk 0:02:32.3]}
19... Rfe8 {[%clk 0:01:57.9]} 20. Qxb6 {[%clk 0:02:25.3]} 20... Nxb6 {[%clk
0:01:58.8]} 21. d5 {[%clk 0:02:24.6]} 21... Nc4 {[%clk 0:01:55.4]} 22. Rab1
{[%clk 0:02:20.1]} 22... Nxb2 {[%clk 0:01:50.9]} 23. Rd2 {[%clk 0:02:07.8]}
23... Nc4 {[%clk 0:01:46.7]} 24. Rd3 {[%clk 0:01:59]} 24... a6 {[%clk
0:01:37.2]} 25. d6 {[%clk 0:01:43.8]} 25... g5 {[%clk 0:00:59.2]} 26. Bxg5
{[%clk 0:01:18.7]} 26... Rxd6 {[%clk 0:00:59.1]} 27. Rxd6 {[%clk 0:01:16.2]}
27... Nxd6 {[%clk 0:01:00]} 28. Rd1 {[%clk 0:01:15.9]} 28... Bf8 {[%clk
0:00:51.2]} 29. Bf4 {[%clk 0:01:08.7]} 29... Re6 {[%clk 0:00:40.2]} 30. Bd5
{[%clk 0:01:03.7]} 30... Rg6 {[%clk 0:00:40.3]} 31. Bb3 {[%clk 0:01:01.2]} 31...
h5 {[%clk 0:00:36.8]} 32. h4 {[%clk 0:00:57.6]} 32... Nc4 {[%clk 0:00:33.6]} 33.
Rd5 {[%clk 0:00:55.1]} 33... Bh6 {[%clk 0:00:30.2]} 34. Bxh6 {[%clk 0:00:52.3]}
34... Rxh6 {[%clk 0:00:31.1]} 35. Bxc4 {[%clk 0:00:52.2]} 35... bxc4 {[%clk
0:00:31.3]} 36. Rc5 {[%clk 0:00:52.8]} 36... Rb6 {[%clk 0:00:30.5]} 37. Rxc4
{[%clk 0:00:52.1]} 37... Rb5 {[%clk 0:00:30.6]} 38. Ra4 {[%clk 0:00:50.4]} 38...
a5 {[%clk 0:00:31]} 39. Kg2 {[%clk 0:00:49.8]} 39... Kg7 {[%clk 0:00:31.5]} 40.
Kf3 {[%clk 0:00:47]} 40... Kf6 {[%clk 0:00:31.8]} 41. Rf4+ {[%clk 0:00:47.1]}
41... Ke6 {[%clk 0:00:30.9]} 42. Re4+ {[%clk 0:00:45.8]} 42... Kf6 {[%clk
0:00:25.9]} 43. a4 {[%clk 0:00:44.6]} 43... Rb3+ {[%clk 0:00:23.5]} 44. Kf4
{[%clk 0:00:43.9]} 44... Ra3 {[%clk 0:00:24.1]} 45. Rc4 {[%clk 0:00:40.7]} 45...
Kg6 {[%clk 0:00:22.4]} 46. Ke4 {[%clk 0:00:36.4]} 46... Ra2 {[%clk 0:00:19]} 47.
f3 {[%clk 0:00:34.4]} 47... Ra3 {[%clk 0:00:18.4]} 48. Kf4 {[%clk 0:00:33.9]}
48... f6 {[%clk 0:00:17.3]} 49. g4 {[%clk 0:00:33.6]} 49... Ra1 {[%clk
0:00:16.1]} 50. gxh5+ {[%clk 0:00:32]} 50... Kxh5 {[%clk 0:00:10.2]} 51. Rc5+
{[%clk 0:00:31.6]} 51... Kxh4 {[%clk 0:00:06.9]} 52. Rxa5 {[%clk 0:00:32.2]}
52... Kh3 {[%clk 0:00:07.5]} 53. Kf5 {[%clk 0:00:31.5]} 53... Kg3 {[%clk
0:00:07.9]} 54. f4 {[%clk 0:00:26.8]} 54... Kf3 {[%clk 0:00:08.3]} 55. Ra8
{[%clk 0:00:24.4]} 55... Ke3 {[%clk 0:00:08.1]} 56. a5 {[%clk 0:00:21]} 56...
Ra4 {[%clk 0:00:08.4]} 57. Kxf6 {[%clk 0:00:21.2]} 57... Kxf4 {[%clk 0:00:08.9]}
58. Ke6 {[%clk 0:00:19.5]} 58... Kg5 {[%clk 0:00:08.5]} 59. a6 {[%clk
0:00:19.4]} 59... Ra1 {[%clk 0:00:07.7]} 60. Kd6 {[%clk 0:00:18]} 60... Kf6
{[%clk 0:00:07.8]} 61. Kc6 {[%clk 0:00:17.9]} 61... Ke7 {[%clk 0:00:07.7]} 62.
Kb7 {[%clk 0:00:18.1]} 62... Kd7 {[%clk 0:00:08]} 63. Ka7 {[%clk 0:00:18.4]}
63... Kc7 {[%clk 0:00:07.8]} 64. Rg8 {[%clk 0:00:18.6]} 64... Ra2 {[%clk
0:00:08.3]} 65. Rg3 {[%clk 0:00:18.9]} 65... Ra1 {[%clk 0:00:08.4]} 66. Rc3+
{[%clk 0:00:19.5]} 66... Kd7 {[%clk 0:00:08.9]} 67. Kb7 {[%clk 0:00:20]} 67...
Rb1+ {[%clk 0:00:08.9]} 68. Ka8 {[%clk 0:00:20.1]} 68... Ra1 {[%clk 0:00:09.5]}
69. a7 {[%clk 0:00:20.2]} 69... Ra2 {[%clk 0:00:09.3]} 70. Rd3+ {[%clk
0:00:20.5]} 70... Kc7 {[%clk 0:00:09.5]} 71. Rc3+ {[%clk 0:00:21.1]} 71... Kd7
{[%clk 0:00:10.1]} 72. Rb3 {[%clk 0:00:21.5]} 72... Kc7 {[%clk 0:00:10.3]} 73.
Rb7+ {[%clk 0:00:22]} 73... Kc8 {[%clk 0:00:10.9]} 74. Rb8+ {[%clk 0:00:22.6]}
74... Kc7 {[%clk 0:00:11.4]} 75. Rb3 {[%clk 0:00:23.2]} 75... Ra1 {[%clk
0:00:11.7]} 76. Rc3+ {[%clk 0:00:23.6]} 76... Kd7 {[%clk 0:00:12.4]} 77. Kb7
{[%clk 0:00:24]} 77... Rb1+ {[%clk 0:00:12.6]} 78. Ka8 {[%clk 0:00:23.9]} 78...
Ra1 {[%clk 0:00:13.2]} 79. Rc4 {[%clk 0:00:24.1]} 79... Rb1 {[%clk 0:00:09.7]}
80. Rc5 {[%clk 0:00:23.8]} 80... Rb2 {[%clk 0:00:08.9]} 81. Rc4 {[%clk 0:00:24]}
81... Rb1 {[%clk 0:00:08.9]} 82. Rg4 {[%clk 0:00:24]} 82... Kc7 {[%clk
0:00:09.1]} 83. Rg7+ {[%clk 0:00:24.1]} 83... Kc8 {[%clk 0:00:09.3]} 84. Rg8+
{[%clk 0:00:24.1]} 84... Kc7 {[%clk 0:00:09.9]} 85. Rb8 {[%clk 0:00:24.7]} 85...
Ra1 {[%clk 0:00:10.3]} 86. Rb7+ {[%clk 0:00:24.4]} 86... Kc8 {[%clk 0:00:10.4]}
87. Rb5 {[%clk 0:00:24.9]} 87... Kc7 {[%clk 0:00:10.2]} 88. Rc5+ {[%clk
0:00:24.9]} 88... Kd7 {[%clk 0:00:10.7]} 89. Kb7 {[%clk 0:00:24.6]} 89... Rb1+
{[%clk 0:00:08.6]} 90. Ka6 {[%clk 0:00:24.6]} 90... Ra1+ {[%clk 0:00:06.3]} 91.
Ra5 {[%clk 0:00:24.5]} 1-0

[Event "Late-Titled-Tuesday-Blitz-October-03-2023"]
[Site "Chess.com"]
[Date "2023.10.03"]
[Round "2"]
[White "Rutricks"]
[Black "Pomberito2"]
[Result "1-0"]
[WhiteElo "2704"]
[BlackElo "2474"]
[TimeControl "180+1"]
[EndTime "14:18:42 PDT"]
[Termination "Rutricks won on time"]

1. Nf3 {[%clk 0:03:00.9]} 1... Nf6 {[%clk 0:02:59]} 2. g3 {[%clk 0:03:00.6]}
2... b6 {[%clk 0:02:58]} 3. Bg2 {[%clk 0:03:00.9]} 3... Bb7 {[%clk 0:02:58.4]}
4. O-O {[%clk 0:03:01.8]} 4... e6 {[%clk 0:02:56.3]} 5. b3 {[%clk 0:03:01.6]}
5... Be7 {[%clk 0:02:55.3]} 6. Bb2 {[%clk 0:02:57.9]} 6... O-O {[%clk
0:02:55.1]} 7. c4 {[%clk 0:02:56.5]} 7... d5 {[%clk 0:02:54.4]} 8. e3 {[%clk
0:02:56.7]} 8... Nbd7 {[%clk 0:02:51.1]} 9. Qe2 {[%clk 0:02:56.7]} 9... Ne4
{[%clk 0:02:49.7]} 10. d3 {[%clk 0:02:56.7]} 10... Nd6 {[%clk 0:02:48.9]} 11.
Nc3 {[%clk 0:02:43.4]} 11... Bf6 {[%clk 0:02:47.5]} 12. Rac1 {[%clk 0:02:38.2]}
12... a5 {[%clk 0:02:45.3]} 13. Nd4 {[%clk 0:02:31.6]} 13... dxc4 {[%clk
0:02:26.2]} 14. dxc4 {[%clk 0:02:21.2]} 14... Bxg2 {[%clk 0:02:22.8]} 15. Kxg2
{[%clk 0:02:22.1]} 15... Nc5 {[%clk 0:02:20.4]} 16. Rfd1 {[%clk 0:02:19.1]}
16... Qe8 {[%clk 0:02:02.8]} 17. Qf3 {[%clk 0:02:10]} 17... e5 {[%clk
0:01:54.7]} 18. Ndb5 {[%clk 0:02:07.2]} 18... Nxb5 {[%clk 0:01:48.3]} 19. cxb5
{[%clk 0:00:27.5]} 19... e4 {[%clk 0:01:29.4]} 20. Qe2 {[%clk 0:00:03.5]} 20...
Nd3 {[%clk 0:01:27.2]} 21. Rxd3 {[%clk 0:00:03.2]} 21... exd3 {[%clk 0:01:26]}
22. Qxd3 {[%clk 0:00:04.1]} 22... Rd8 {[%clk 0:01:23.7]} 23. Qc4 {[%clk
0:00:04.6]} 23... Qe5 {[%clk 0:01:06.9]} 24. Na4 {[%clk 0:00:03.6]} 24... Qd5+
{[%clk 0:00:54.4]} 25. Qxd5 {[%clk 0:00:04]} 25... Rxd5 {[%clk 0:00:54.8]} 26.
Bxf6 {[%clk 0:00:03.2]} 26... gxf6 {[%clk 0:00:55.3]} 27. Rxc7 {[%clk
0:00:03.7]} 27... Rxb5 {[%clk 0:00:55.7]} 28. Rc6 {[%clk 0:00:04.5]} 28... Kg7
{[%clk 0:00:54.6]} 29. Nxb6 {[%clk 0:00:02.7]} 29... Rd8 {[%clk 0:00:42.1]} 30.
Nc4 {[%clk 0:00:02.2]} 30... a4 {[%clk 0:00:42]} 31. bxa4 {[%clk 0:00:02.4]}
31... Rb4 {[%clk 0:00:41]} 32. a5 {[%clk 0:00:02.8]} 32... Ra4 {[%clk 0:00:40]}
33. a3 {[%clk 0:00:03.3]} 33... Rd1 {[%clk 0:00:38.1]} 34. Nb6 {[%clk
0:00:01.5]} 34... Rxa5 {[%clk 0:00:34.3]} 35. Nc4 {[%clk 0:00:02.1]} 35... Ra7
{[%clk 0:00:29]} 36. Nd6 {[%clk 0:00:02.3]} 36... Rxa3 {[%clk 0:00:24.2]} 37.
Ne8+ {[%clk 0:00:02.6]} 37... Kf8 {[%clk 0:00:23.5]} 38. Nxf6 {[%clk 0:00:03.5]}
38... Ra2 {[%clk 0:00:22.4]} 39. Ne4 {[%clk 0:00:02.1]} 39... Rb1 {[%clk
0:00:20.4]} 40. Kf3 {[%clk 0:00:01.9]} 40... Rbb2 {[%clk 0:00:20.3]} 41. Rf6
{[%clk 0:00:02.2]} 41... Kg7 {[%clk 0:00:19.9]} 42. Rf4 {[%clk 0:00:02.4]} 42...
h5 {[%clk 0:00:16.8]} 43. h3 {[%clk 0:00:02.7]} 43... Ra6 {[%clk 0:00:14.4]} 44.
g4 {[%clk 0:00:02]} 44... hxg4+ {[%clk 0:00:13.6]} 45. hxg4 {[%clk 0:00:02.9]}
45... Kg6 {[%clk 0:00:13.8]} 46. Rf5 {[%clk 0:00:02.8]} 46... f6 {[%clk
0:00:12.8]} 47. Rf4 {[%clk 0:00:02.2]} 47... Rb4 {[%clk 0:00:12]} 48. Ng3 {[%clk
0:00:02.3]} 48... Rxf4+ {[%clk 0:00:11.7]} 49. Kxf4 {[%clk 0:00:03.2]} 49...
Ra4+ {[%clk 0:00:11.5]} 50. Kf3 {[%clk 0:00:04]} 50... Ra2 {[%clk 0:00:11]} 51.
e4 {[%clk 0:00:04.1]} 51... Ra3+ {[%clk 0:00:10.9]} 52. Kf4 {[%clk 0:00:04.7]}
52... Ra2 {[%clk 0:00:11.2]} 53. f3 {[%clk 0:00:05.3]} 53... Ra5 {[%clk
0:00:11.6]} 54. Nf5 {[%clk 0:00:05.7]} 54... Ra4 {[%clk 0:00:10.6]} 55. Ne7+
{[%clk 0:00:06.1]} 55... Kf7 {[%clk 0:00:10.5]} 56. Nd5 {[%clk 0:00:06.8]} 56...
Ra3 {[%clk 0:00:09.8]} 57. Nb6 {[%clk 0:00:05.6]} 57... Kg6 {[%clk 0:00:09.6]}
58. Nc4 {[%clk 0:00:05.9]} 58... Rc3 {[%clk 0:00:08.9]} 59. Ne3 {[%clk 0:00:06]}
59... Kf7 {[%clk 0:00:08.2]} 60. Nd5 {[%clk 0:00:06.4]} 60... Ra3 {[%clk
0:00:08.8]} 61. Nb4 {[%clk 0:00:04.6]} 61... Kg6 {[%clk 0:00:08.7]} 62. Nc2
{[%clk 0:00:05]} 62... Ra2 {[%clk 0:00:09]} 63. Nd4 {[%clk 0:00:05.5]} 63... Ra3
{[%clk 0:00:09.2]} 64. Nf5 {[%clk 0:00:05.7]} 64... Rb3 {[%clk 0:00:08.7]} 65.
Nh4+ {[%clk 0:00:06.2]} 65... Kf7 {[%clk 0:00:08.9]} 66. g5 {[%clk 0:00:04.6]}
66... fxg5+ {[%clk 0:00:08.3]} 67. Kxg5 {[%clk 0:00:05.5]} 67... Rb5+ {[%clk
0:00:07]} 68. Nf5 {[%clk 0:00:05.6]} 68... Rb1 {[%clk 0:00:05.5]} 69. Kf4 {[%clk
0:00:05.9]} 69... Kf6 {[%clk 0:00:04.9]} 70. Nd4 {[%clk 0:00:03.8]} 70... Rd1
{[%clk 0:00:03.9]} 71. e5+ {[%clk 0:00:03.7]} 71... Kg6 {[%clk 0:00:04.3]} 72.
Nf5 {[%clk 0:00:03.1]} 72... Ra1 {[%clk 0:00:02.5]} 73. Nd6 {[%clk 0:00:02.1]}
73... Ra4+ {[%clk 0:00:02.5]} 74. Ne4 {[%clk 0:00:02.7]} 74... Kf7 {[%clk
0:00:02.3]} 75. Kf5 {[%clk 0:00:02.9]} 75... Ra8 {[%clk 0:00:01]} 76. f4 {[%clk
0:00:03.2]} 76... Ra5 {[%clk 0:00:01.9]} 77. Nd6+ {[%clk 0:00:03.6]} 1-0

[Event "Late-Titled-Tuesday-Blitz-October-03-2023"]
[Site "Chess.com"]
[Date "2023.10.03"]
[Round "2"]
[White "Danishcrown"]
[Black "GameOverBro"]
[Result "1/2-1/2"]
[WhiteElo "2141"]
[BlackElo "2420"]
[TimeControl "180+1"]
[EndTime "14:19:10 PDT"]
[Termination "Game drawn by 50-move rule"]

1. d4 {[%clk 0:03:00.9]} 1... Nf6 {[%clk 0:02:59.3]} 2. Bf4 {[%clk 0:03:00]}
2... d6 {[%clk 0:02:59.2]} 3. e3 {[%clk 0:02:58.6]} 3... Nbd7 {[%clk 0:02:59.7]}
4. Nf3 {[%clk 0:02:55.4]} 4... Nh5 {[%clk 0:03:00]} 5. Bg3 {[%clk 0:02:55.4]}
5... Nxg3 {[%clk 0:02:59.9]} 6. hxg3 {[%clk 0:02:55.4]} 6... g6 {[%clk
0:02:59.4]} 7. Nbd2 {[%clk 0:02:52.4]} 7... Bg7 {[%clk 0:02:59.5]} 8. Bd3 {[%clk
0:02:52.3]} 8... c5 {[%clk 0:02:57.2]} 9. c3 {[%clk 0:02:51.6]} 9... Rb8 {[%clk
0:02:56.7]} 10. Qe2 {[%clk 0:02:49.4]} 10... a6 {[%clk 0:02:55.9]} 11. e4 {[%clk
0:02:49.4]} 11... b5 {[%clk 0:02:55]} 12. e5 {[%clk 0:02:45.8]} 12... Nf8 {[%clk
0:02:44.2]} 13. O-O {[%clk 0:02:42.3]} 13... c4 {[%clk 0:02:31]} 14. Bc2 {[%clk
0:02:40.1]} 14... Ne6 {[%clk 0:02:27.3]} 15. exd6 {[%clk 0:02:23.1]} 15... Qxd6
{[%clk 0:02:27]} 16. Ne4 {[%clk 0:02:21.8]} 16... Qd5 {[%clk 0:02:23.7]} 17. b3
{[%clk 0:02:04.8]} 17... O-O {[%clk 0:02:23.2]} 18. bxc4 {[%clk 0:01:57.5]}
18... bxc4 {[%clk 0:02:18.8]} 19. Rab1 {[%clk 0:01:57.9]} 19... Bb7 {[%clk
0:02:10.5]} 20. Ned2 {[%clk 0:01:52]} 20... Qa5 {[%clk 0:02:10.1]} 21. Nxc4
{[%clk 0:01:36.6]} 21... Qxc3 {[%clk 0:02:09.3]} 22. Nce5 {[%clk 0:01:26.2]}
22... Nxd4 {[%clk 0:01:58]} 23. Nxd4 {[%clk 0:01:22.9]} 23... Qxd4 {[%clk
0:01:58.9]} 24. Nf3 {[%clk 0:01:16.9]} 24... Qf6 {[%clk 0:01:53.5]} 25. Bb3
{[%clk 0:01:07.8]} 25... e6 {[%clk 0:01:50.3]} 26. Rfd1 {[%clk 0:01:05.7]} 26...
a5 {[%clk 0:01:44.4]} 27. Bc4 {[%clk 0:00:51.6]} 27... Bxf3 {[%clk 0:01:37]} 28.
gxf3 {[%clk 0:00:47]} 28... Rbc8 {[%clk 0:01:24]} 29. Kg2 {[%clk 0:00:45.4]}
29... Rc5 {[%clk 0:01:23.7]} 30. Rb7 {[%clk 0:00:32]} 30... Qc3 {[%clk
0:01:20.4]} 31. Bb3 {[%clk 0:00:29.6]} 31... h5 {[%clk 0:01:05.9]} 32. Rdd7
{[%clk 0:00:27.6]} 32... Re5 {[%clk 0:01:05.9]} 33. Qc4 {[%clk 0:00:24.8]} 33...
Qxc4 {[%clk 0:01:03.2]} 34. Bxc4 {[%clk 0:00:24.7]} 34... Bf6 {[%clk 0:00:59.3]}
35. f4 {[%clk 0:00:22.3]} 35... Rc5 {[%clk 0:00:58.6]} 36. Bb3 {[%clk
0:00:20.6]} 36... Rcc8 {[%clk 0:00:45.5]} 37. Ra7 {[%clk 0:00:20.6]} 37... Bc3
{[%clk 0:00:45.1]} 38. Rdc7 {[%clk 0:00:14.9]} 38... Rxc7 {[%clk 0:00:44.1]} 39.
Rxc7 {[%clk 0:00:15.5]} 39... Bb4 {[%clk 0:00:44.2]} 40. Rb7 {[%clk 0:00:16]}
40... Rd8 {[%clk 0:00:43.3]} 41. Rc7 {[%clk 0:00:12.7]} 41... Rd2 {[%clk
0:00:42.8]} 42. Rc2 {[%clk 0:00:12.8]} 42... Rd3 {[%clk 0:00:42.8]} 43. Re2
{[%clk 0:00:12.8]} 43... Kg7 {[%clk 0:00:42.1]} 44. Rc2 {[%clk 0:00:12.9]} 44...
Kf6 {[%clk 0:00:41.8]} 45. Re2 {[%clk 0:00:13]} 45... Bc5 {[%clk 0:00:40.9]} 46.
Rc2 {[%clk 0:00:11.7]} 46... Bd4 {[%clk 0:00:41.1]} 47. Bc4 {[%clk 0:00:11.2]}
47... Ra3 {[%clk 0:00:40.1]} 48. Rd2 {[%clk 0:00:11.1]} 48... Bc5 {[%clk
0:00:39.4]} 49. Rc2 {[%clk 0:00:11.1]} 49... a4 {[%clk 0:00:39]} 50. Rd2 {[%clk
0:00:08.7]} 50... Ke7 {[%clk 0:00:37.9]} 51. Rd3 {[%clk 0:00:08.6]} 51... Rxd3
{[%clk 0:00:35.7]} 52. Bxd3 {[%clk 0:00:09.5]} 52... a3 {[%clk 0:00:32.6]} 53.
Bb5 {[%clk 0:00:10]} 53... Kd6 {[%clk 0:00:30]} 54. Be8 {[%clk 0:00:09.8]} 54...
Ke7 {[%clk 0:00:30]} 55. Ba4 {[%clk 0:00:09.9]} 55... Kf6 {[%clk 0:00:30.1]} 56.
Kf3 {[%clk 0:00:09.2]} 56... g5 {[%clk 0:00:28.8]} 57. fxg5+ {[%clk 0:00:08.1]}
57... Kxg5 {[%clk 0:00:29.7]} 58. Be8 {[%clk 0:00:08.3]} 58... Kf6 {[%clk
0:00:29.6]} 59. Ba4 {[%clk 0:00:07.7]} 59... Ke7 {[%clk 0:00:28]} 60. Bd1 {[%clk
0:00:07.5]} 60... Kf6 {[%clk 0:00:25.2]} 61. Kg2 {[%clk 0:00:07.5]} 61... Kg5
{[%clk 0:00:24.2]} 62. Kf3 {[%clk 0:00:07.8]} 62... f5 {[%clk 0:00:23.7]} 63.
Bb3 {[%clk 0:00:05.9]} 63... e5 {[%clk 0:00:23.4]} 64. Bc2 {[%clk 0:00:05.5]}
64... e4+ {[%clk 0:00:23]} 65. Kg2 {[%clk 0:00:05.8]} 65... Kg4 {[%clk
0:00:20.8]} 66. Bd1+ {[%clk 0:00:05.5]} 66... Kg5 {[%clk 0:00:21.1]} 67. Be2
{[%clk 0:00:05.8]} 67... Bd4 {[%clk 0:00:21.1]} 68. Bd1 {[%clk 0:00:05.6]} 68...
h4 {[%clk 0:00:21.2]} 69. gxh4+ {[%clk 0:00:05.3]} 69... Kxh4 {[%clk 0:00:22.1]}
70. f3 {[%clk 0:00:05.8]} 70... e3 {[%clk 0:00:21.3]} 71. Kf1 {[%clk 0:00:05.5]}
71... Kg3 {[%clk 0:00:21.4]} 72. Ke2 {[%clk 0:00:06.4]} 72... Kf4 {[%clk
0:00:18.3]} 73. Bb3 {[%clk 0:00:07.3]} 73... Bb2 {[%clk 0:00:17.6]} 74. Bg8
{[%clk 0:00:08.2]} 74... Bc1 {[%clk 0:00:17.4]} 75. Bb3 {[%clk 0:00:09.1]} 75...
Bd2 {[%clk 0:00:17.7]} 76. Bc4 {[%clk 0:00:10]} 76... Ke5 {[%clk 0:00:18.3]} 77.
Bb3 {[%clk 0:00:10.9]} 77... f4 {[%clk 0:00:19.2]} 78. Bc4 {[%clk 0:00:11.8]}
78... Kd4 {[%clk 0:00:19.9]} 79. Bb3 {[%clk 0:00:12.7]} 79... Kc3 {[%clk
0:00:20.4]} 80. Bg8 {[%clk 0:00:13.6]} 80... Kb2 {[%clk 0:00:20.8]} 81. Bf7
{[%clk 0:00:14.5]} 81... Kc1 {[%clk 0:00:21.2]} 82. Bg8 {[%clk 0:00:15.4]} 82...
Kc2 {[%clk 0:00:22.1]} 83. Bf7 {[%clk 0:00:16.3]} 83... Kc3 {[%clk 0:00:22.9]}
84. Bg8 {[%clk 0:00:17.2]} 84... Kd4 {[%clk 0:00:23.8]} 85. Bf7 {[%clk
0:00:18.1]} 85... Ke5 {[%clk 0:00:24.7]} 86. Bg8 {[%clk 0:00:19]} 86... Kf6
{[%clk 0:00:24.9]} 87. Bb3 {[%clk 0:00:19.9]} 87... Ke7 {[%clk 0:00:25.6]} 88.
Bd1 {[%clk 0:00:20.8]} 88... Kd6 {[%clk 0:00:26.5]} 89. Bb3 {[%clk 0:00:21.7]}
89... Kc5 {[%clk 0:00:27.4]} 90. Bc4 {[%clk 0:00:22.6]} 90... Kd4 {[%clk
0:00:28.3]} 91. Bb3 {[%clk 0:00:23.5]} 91... Ke5 {[%clk 0:00:28.7]} 92. Bg8
{[%clk 0:00:24.4]} 92... Kd6 {[%clk 0:00:29.6]} 93. Bf7 {[%clk 0:00:25.3]} 93...
Ke7 {[%clk 0:00:30.5]} 94. Bg8 {[%clk 0:00:26.2]} 94... Kf8 {[%clk 0:00:31.2]}
95. Bb3 {[%clk 0:00:27.1]} 95... Ke7 {[%clk 0:00:31.9]} 96. Bc4 {[%clk 0:00:28]}
96... Ke8 {[%clk 0:00:32.4]} 97. Bb3 {[%clk 0:00:28.9]} 97... Kf8 {[%clk
0:00:33.3]} 98. Bc4 {[%clk 0:00:29.8]} 98... Kg7 {[%clk 0:00:34]} 99. Bb3 {[%clk
0:00:30.6]} 99... Kf6 {[%clk 0:00:34.9]} 100. Kd3 {[%clk 0:00:31.1]} 100... Ke5
{[%clk 0:00:35.8]} 101. Ke2 {[%clk 0:00:32]} 101... Kd6 {[%clk 0:00:36.2]} 102.
Bg8 {[%clk 0:00:32.1]} 102... Kc5 {[%clk 0:00:37.1]} 103. Bh7 {[%clk 0:00:32.4]}
103... Bc3 {[%clk 0:00:38]} 104. Bg8 {[%clk 0:00:33.1]} 104... Bb2 {[%clk
0:00:38.9]} 105. Bb3 {[%clk 0:00:33.5]} 105... Kd4 {[%clk 0:00:39.8]} 106. Bg8
{[%clk 0:00:34.1]} 106... Ke5 {[%clk 0:00:40.7]} 107. Bb3 {[%clk 0:00:34.4]}
107... Kf6 {[%clk 0:00:41.6]} 108. Bg8 {[%clk 0:00:34.9]} 108... Kg7 {[%clk
0:00:42.5]} 109. Bb3 {[%clk 0:00:34.9]} 109... Kf8 {[%clk 0:00:43.4]} 110. Bc4
{[%clk 0:00:35.4]} 110... Ke8 {[%clk 0:00:44.3]} 111. Bb3 {[%clk 0:00:36.3]}
111... Ke7 {[%clk 0:00:45.2]} 112. Bc4 {[%clk 0:00:36.7]} 112... Kf8 {[%clk
0:00:46.1]} 113. Bb3 {[%clk 0:00:37.6]} 113... Ke8 {[%clk 0:00:46.8]} 114. Bc2
{[%clk 0:00:38.2]} 114... Ke7 {[%clk 0:00:47.7]} 115. Be4 {[%clk 0:00:39.1]}
115... Kd6 {[%clk 0:00:48.6]} 116. Bc2 {[%clk 0:00:39.8]} 116... Kc6 {[%clk
0:00:49.5]} 117. Bb3 {[%clk 0:00:40.7]} 117... Kc5 {[%clk 0:00:50.4]} 118. Bg8
{[%clk 0:00:41.2]} 118... Kb4 {[%clk 0:00:51.3]} 119. Bf7 {[%clk 0:00:41.9]}
119... Bc1 {[%clk 0:00:51.5]} 120. Bg8 {[%clk 0:00:42.2]} 120... Bd2 {[%clk
0:00:52.4]} 121. Bf7 {[%clk 0:00:42.8]} 121... Bc3 {[%clk 0:00:53.3]} 122. Bg8
{[%clk 0:00:43.2]} 122... Be5 {[%clk 0:00:54.2]} 123. Bf7 {[%clk 0:00:43.6]}
123... Bf6 {[%clk 0:00:55.1]} 124. Bg8 {[%clk 0:00:44.3]} 124... Bg5 {[%clk
0:00:56]} 125. Bb3 {[%clk 0:00:44.9]} 125... Bh4 {[%clk 0:00:56.9]} 126. Bg8
{[%clk 0:00:45.7]} 126... Kc3 {[%clk 0:00:57.8]} 127. Bb3 {[%clk 0:00:46.6]}
127... Kb2 {[%clk 0:00:58.1]} 1/2-1/2

[Event "Late-Titled-Tuesday-Blitz-October-03-2023"]
[Site "Chess.com"]
[Date "2023.10.03"]
[Round "3"]
[White "jcibarra"]
[Black "Savagelittlemole"]
[Result "1-0"]
[WhiteElo "2948"]
[BlackElo "2566"]
[TimeControl "180+1"]
[EndTime "14:20:42 PDT"]
[Termination "jcibarra won by resignation"]

1. e4 {[%clk 0:03:00.9]} 1... c5 {[%clk 0:02:56.8]} 2. Nf3 {[%clk 0:03:00.7]}
2... d6 {[%clk 0:02:57.4]} 3. c3 {[%clk 0:03:00.6]} 3... Nf6 {[%clk 0:02:57.4]}
4. h3 {[%clk 0:03:00.9]} 4... Nc6 {[%clk 0:02:56.3]} 5. Bd3 {[%clk 0:03:00.5]}
5... g6 {[%clk 0:02:56.6]} 6. Bc2 {[%clk 0:03:00.1]} 6... Bg7 {[%clk 0:02:57.3]}
7. O-O {[%clk 0:02:59.8]} 7... Nd4 {[%clk 0:02:58]} 8. cxd4 {[%clk 0:02:58.8]}
8... cxd4 {[%clk 0:02:42.4]} 9. Nxd4 {[%clk 0:02:56.9]} 9... O-O {[%clk
0:02:43]} 10. Nf3 {[%clk 0:02:54.3]} 10... b6 {[%clk 0:02:43.1]} 11. d4 {[%clk
0:02:54]} 11... Bb7 {[%clk 0:02:43.5]} 12. Nc3 {[%clk 0:02:54]} 12... Rc8 {[%clk
0:02:42.7]} 13. Re1 {[%clk 0:02:52.7]} 13... Qc7 {[%clk 0:02:37.9]} 14. Bg5
{[%clk 0:02:51.7]} 1-0

[Event "Late-Titled-Tuesday-Blitz-October-03-2023"]
[Site "Chess.com"]
[Date "2023.10.03"]
[Round "3"]
[White "dretch"]
[Black "JG-17"]
[Result "1-0"]
[WhiteElo "2837"]
[BlackElo "2505"]
[TimeControl "180+1"]
[EndTime "14:22:10 PDT"]
[Termination "dretch won by resignation"]

1. d4 {[%clk 0:03:00.9]} 1... d5 {[%clk 0:03:00]} 2. c4 {[%clk 0:03:01.3]} 2...
e6 {[%clk 0:03:00.7]} 3. Nc3 {[%clk 0:03:01.7]} 3... c6 {[%clk 0:03:00.7]} 4. e3
{[%clk 0:03:01.6]} 4... Nf6 {[%clk 0:03:00.4]} 5. Bd3 {[%clk 0:03:01.5]} 5...
Nbd7 {[%clk 0:03:00]} 6. cxd5 {[%clk 0:02:56.1]} 6... exd5 {[%clk 0:02:59.9]} 7.
Nge2 {[%clk 0:02:55]} 7... Bd6 {[%clk 0:02:59.7]} 8. f3 {[%clk 0:02:54.1]} 8...
O-O {[%clk 0:02:57.1]} 9. e4 {[%clk 0:02:52.1]} 9... dxe4 {[%clk 0:02:52.2]} 10.
fxe4 {[%clk 0:02:52.3]} 10... c5 {[%clk 0:02:48]} 11. e5 {[%clk 0:02:52.5]}
11... cxd4 {[%clk 0:02:48.1]} 12. exd6 {[%clk 0:02:51.5]} 12... dxc3 {[%clk
0:02:48.4]} 13. O-O {[%clk 0:02:45.2]} 13... Nc5 {[%clk 0:02:27.7]} 14. Nxc3
{[%clk 0:02:37.9]} 14... Bg4 {[%clk 0:02:21.3]} 15. Be2 {[%clk 0:02:25.8]} 15...
Bxe2 {[%clk 0:02:21.4]} 16. Nxe2 {[%clk 0:02:26.2]} 16... Nce4 {[%clk
0:02:17.7]} 17. Bf4 {[%clk 0:02:24.6]} 17... Qb6+ {[%clk 0:02:16.8]} 18. Qd4
{[%clk 0:02:23.8]} 18... Qxd4+ {[%clk 0:02:05.1]} 19. Nxd4 {[%clk 0:02:22.8]}
19... Rad8 {[%clk 0:02:03]} 20. Nf5 {[%clk 0:02:17]} 20... Nd5 {[%clk
0:01:56.3]} 21. Ne7+ {[%clk 0:02:15.7]} 1-0